fUST/lending_fUST_20260517
["ID","MTS","AMOUNT","RATE_DAILY","PERIOD"]
[422452939,1778964638000,-533.408,6.7e-05,2]
[422452941,1778964638000,-621.78829552,6.716e-05,2]
[422452945,1778964638000,-668.65185757,6.826e-05,2]
[422452947,1778964638000,-9447.21304805,6.827e-05,2]
[422452943,1778964638000,-644.79446246,6.771e-05,2]
[422452951,1778964638000,-12913.79060295,6.834e-05,2]
[422452921,1778964638000,-420.0,6.684e-05,2]
[422452889,1778964638000,-6590.90038128,6.5e-05,2]
[422452928,1778964638000,-1939.02265747,6.7e-05,2]
[422452909,1778964638000,-647.0,6.626e-05,2]
[422452887,1778964638000,-8019.05671466,6.5e-05,2]
[422452907,1778964638000,-2202.0,6.626e-05,2]
[422452905,1778964638000,-578.20924308,6.606e-05,2]
[422452898,1778964638000,-3530.4516563,6.531e-05,2]
[422452902,1778964638000,-557.5788265,6.551e-05,2]
[422452891,1778964638000,-6348.87104945,6.5e-05,2]
[422452893,1778964638000,-4552.4044723,6.531e-05,2]
[422452917,1778964638000,-166.213,6.626e-05,2]
[422452911,1778964638000,-443.0,6.626e-05,2]
[422452913,1778964638000,-1413.0,6.626e-05,2]
[422452915,1778964638000,-151.456,6.626e-05,2]
[422452923,1778964638000,-257.9145633,6.697e-05,2]
[422452900,1778964638000,-160.5653083,6.531e-05,2]
[422452924,1778964638000,-807.85113782,6.7e-05,2]
[422453186,1778964640000,-5000.0,6.633e-05,2]
[422453191,1778964640000,-4639.7776495,6.834e-05,2]
[422453189,1778964640000,-6480.38179865,6.834e-05,2]
[422453990,1778964646000,-20550.52981663,6.834e-05,2]
[422453989,1778964646000,-171.9430422,6.697e-05,2]
[422454818,1778964813000,3000.0,8e-05,30]
[422454820,1778964993000,216.65409625,0.00013292,120]
[422454887,1778965274000,-5000.0,6.008e-05,2]
[422454910,1778965832000,-5000.0,6.168e-05,2]
[422454913,1778965832000,-300.0,6.592e-05,2]
[422454914,1778965832000,-1413.0,6.593e-05,2]
[422454912,1778965832000,-1418.2004495,6.23e-05,2]
[422454915,1778965832000,-2202.0,6.593e-05,2]
[422454917,1778965832000,-741.0,6.593e-05,2]
[422454918,1778965832000,-185.0,6.593e-05,2]
[422454911,1778965832000,-496.54960289,6.199e-05,2]
[422454921,1778965832000,-151.31385797,6.7e-05,2]
[422454923,1778965832000,-153.59187235,6.7e-05,2]
[422454925,1778965832000,-2900.88132077,6.734e-05,2]
[422454922,1778965832000,-153.41053462,6.7e-05,2]
[422454919,1778965832000,-151.0,6.661e-05,2]
[422454924,1778965832000,-159.4680906,6.7e-05,2]
[422454920,1778965832000,-171.9430422,6.697e-05,2]
[422454916,1778965832000,-443.0,6.593e-05,2]
[422454989,1778965838000,-500.0,6.833e-05,2]
[422454987,1778965838000,-1000.0,6.833e-05,2]
[422454991,1778965838000,-274.03745437,6.833e-05,2]
[422454985,1778965838000,-422.42469455,6.83e-05,2]
[422454993,1778965838000,-500.0,6.833e-05,2]
[422454983,1778965838000,-115.25980545,6.83e-05,2]
[422454981,1778965838000,-4761.95265019,6.734e-05,2]
[422454997,1778965838000,-500.0,6.833e-05,2]
[422454999,1778965838000,-426.726,6.833e-05,2]
[422455001,1778965838000,-22009.97815649,6.834e-05,2]
[422454995,1778965838000,-500.0,6.833e-05,2]
[422454979,1778965838000,-171.9430422,6.697e-05,2]
[422455536,1778965842000,-4865.12127409,6.834e-05,2]
[422455622,1778965843000,-1211.53988632,6.834e-05,2]
[422455624,1778965846000,-776.39520267,6.834e-05,2]
[422455633,1778966893000,159.496813,2.856e-05,2]
[422455700,1778967035000,-5000.0,5.558e-05,2]
[422455711,1778967036000,-741.0,6.676e-05,2]
[422455710,1778967036000,-1413.0,6.676e-05,2]
[422455705,1778967036000,-2081.61398404,6.585e-05,2]
[422455706,1778967036000,-3145.1429773,6.599e-05,2]
[422455709,1778967036000,-2202.0,6.676e-05,2]
[422455708,1778967036000,-647.0,6.676e-05,2]
[422455704,1778967036000,-2689.44491475,6.585e-05,2]
[422455703,1778967036000,-300.0,6.584e-05,2]
[422455707,1778967036000,-1581.5100578,6.599e-05,2]
[422455701,1778967036000,-279.61339346,5.614e-05,2]
[422455702,1778967036000,-492.40733594,5.643e-05,2]
[422455712,1778967037000,-56.85182758,6.676e-05,2]
[422455715,1778967037000,-465.54751351,6.678e-05,2]
[422455714,1778967037000,-443.0,6.676e-05,2]
[422455713,1778967037000,-128.14817242,6.676e-05,2]
[422455793,1778967038000,-3595.93720171,6.834e-05,2]
[422455748,1778967038000,-764.59472048,6.685e-05,2]
[422455745,1778967038000,-72.13698649,6.678e-05,2]
[422455764,1778967038000,-4991.96987597,6.685e-05,2]
[422455768,1778967038000,-3410.55220614,6.685e-05,2]
[422455770,1778967038000,-10294.2564028,6.7e-05,2]
[422455790,1778967038000,-578.20924308,6.788e-05,2]
[422455779,1778967038000,-4874.42233847,6.7e-05,2]
[422455787,1778967038000,-557.5788265,6.733e-05,2]
[422455773,1778967038000,-11421.39600312,6.7e-05,2]
[422455784,1778967038000,-189.74118105,6.706e-05,2]
[422455782,1778967038000,-414.097,6.706e-05,2]
[422455796,1778967038000,-3466.50906577,6.834e-05,2]
[422455799,1778967038000,-409496.56063363,6.834e-05,2]
[422455776,1778967038000,-6828.22490852,6.7e-05,2]
[422456091,1778967040000,-2357.72519592,6.834e-05,2]
[422456927,1778967047000,-109963.84543252,6.834e-05,2]
[422456914,1778967047000,-10830.25083971,6.834e-05,2]
[422459306,1778967363000,202.68,6.846e-05,16]
[422459314,1778967615000,159.496813,2.914e-05,2]
[422459315,1778967616000,159.496813,3.314e-05,2]
[422459316,1778967616000,159.496813,3.713e-05,2]
[422459319,1778967616000,159.496813,4.913e-05,2]
[422459318,1778967616000,159.496813,4.513e-05,2]
[422459317,1778967616000,159.496813,4.113e-05,2]
[422459419,1778968232000,-500.0,6.629e-05,2]
[422459421,1778968232000,-500.0,6.629e-05,2]
[422459411,1778968232000,-467.1023814,6.629e-05,2]
[422459415,1778968232000,-500.0,6.629e-05,2]
[422459417,1778968232000,-196.01566943,6.629e-05,2]
[422459410,1778968232000,-500.0,6.629e-05,2]
[422459413,1778968232000,-500.0,6.629e-05,2]
[422459408,1778968232000,-500.0,6.629e-05,2]
[422459406,1778968232000,-500.0,6.629e-05,2]
[422459404,1778968232000,-500.0,6.629e-05,2]
[422459400,1778968232000,-163.7375505,6.629e-05,2]
[422459394,1778968232000,-500.0,6.629e-05,2]
[422459402,1778968232000,-500.0,6.629e-05,2]
[422459392,1778968232000,-500.0,6.629e-05,2]
[422459396,1778968232000,-500.0,6.629e-05,2]
[422459390,1778968232000,-500.0,6.629e-05,2]
[422459386,1778968232000,-500.0,6.629e-05,2]
[422459388,1778968232000,-500.0,6.629e-05,2]
[422459382,1778968232000,-500.0,6.629e-05,2]
[422459378,1778968232000,-500.0,6.629e-05,2]
[422459380,1778968232000,-500.0,6.629e-05,2]
[422459376,1778968232000,-300.0,6.628e-05,2]
[422459370,1778968232000,-159.496813,5.713e-05,2]
[422459372,1778968232000,-152.0,6.021e-05,7]
[422459374,1778968232000,-179.24543092,6.216e-05,2]
[422459366,1778968232000,-511.37777829,5.26e-05,2]
[422459368,1778968232000,-159.496813,5.313e-05,2]
[422459364,1778968232000,-5000.0,5.207e-05,2]
[422459426,1778968232000,-500.0,6.629e-05,2]
[422459384,1778968232000,-647.48195958,6.629e-05,2]
[422459424,1778968232000,-500.0,6.629e-05,2]
[422459398,1778968232000,-511.22533582,6.629e-05,2]
[422459423,1778968232000,-500.0,6.629e-05,2]
[422459428,1778968232000,-500.0,6.629e-05,2]
[422459497,1778968232000,-335.67540952,6.629e-05,2]
[422459485,1778968232000,-500.0,6.629e-05,2]
[422459483,1778968232000,-500.0,6.629e-05,2]
[422459491,1778968232000,-500.0,6.629e-05,2]
[422459481,1778968232000,-500.0,6.629e-05,2]
[422459487,1778968232000,-500.0,6.629e-05,2]
[422459489,1778968232000,-500.0,6.629e-05,2]
[422459479,1778968232000,-500.0,6.629e-05,2]
[422459475,1778968232000,-500.0,6.629e-05,2]
[422459470,1778968232000,-500.0,6.629e-05,2]
[422459473,1778968232000,-500.0,6.629e-05,2]
[422459468,1778968232000,-500.0,6.629e-05,2]
[422459477,1778968232000,-500.0,6.629e-05,2]
[422459461,1778968232000,-500.0,6.629e-05,2]
[422459493,1778968232000,-500.0,6.629e-05,2]
[422459448,1778968232000,-500.0,6.629e-05,2]
[422459458,1778968232000,-500.0,6.629e-05,2]
[422459430,1778968232000,-330.42338939,6.629e-05,2]
[422459432,1778968232000,-500.0,6.629e-05,2]
[422459434,1778968232000,-500.0,6.629e-05,2]
[422459444,1778968232000,-500.0,6.629e-05,2]
[422459442,1778968232000,-500.0,6.629e-05,2]
[422459438,1778968232000,-500.0,6.629e-05,2]
[422459436,1778968232000,-500.0,6.629e-05,2]
[422459452,1778968232000,-500.0,6.629e-05,2]
[422459446,1778968232000,-500.0,6.629e-05,2]
[422459456,1778968232000,-500.0,6.629e-05,2]
[422459454,1778968232000,-500.0,6.629e-05,2]
[422459495,1778968232000,-500.0,6.629e-05,2]
[422459440,1778968232000,-500.0,6.629e-05,2]
[422459450,1778968232000,-500.0,6.629e-05,2]
[422459732,1778968238000,-500.0,6.629e-05,2]
[422459738,1778968238000,-500.0,6.629e-05,2]
[422459741,1778968238000,-500.0,6.629e-05,2]
[422459743,1778968238000,-251.1757722,6.629e-05,2]
[422459745,1778968238000,-500.0,6.629e-05,2]
[422459765,1778968238000,-500.0,6.629e-05,2]
[422459753,1778968238000,-500.0,6.629e-05,2]
[422459755,1778968238000,-500.0,6.629e-05,2]
[422459770,1778968238000,-500.0,6.629e-05,2]
[422459733,1778968238000,-500.0,6.629e-05,2]
[422459759,1778968238000,-500.0,6.629e-05,2]
[422459747,1778968238000,-500.0,6.629e-05,2]
[422459728,1778968238000,-478.30548611,6.629e-05,2]
[422459713,1778968238000,-500.0,6.629e-05,2]
[422459725,1778968238000,-21.69451389,6.629e-05,2]
[422459719,1778968238000,-500.0,6.629e-05,2]
[422459715,1778968238000,-500.0,6.629e-05,2]
[422459721,1778968238000,-500.0,6.629e-05,2]
[422459717,1778968238000,-500.0,6.629e-05,2]
[422459723,1778968238000,-500.0,6.629e-05,2]
[422459709,1778968238000,-500.0,6.629e-05,2]
[422459703,1778968238000,-164.32459048,6.629e-05,2]
[422459705,1778968238000,-500.0,6.629e-05,2]
[422459707,1778968238000,-500.0,6.629e-05,2]
[422459711,1778968238000,-500.0,6.629e-05,2]
[422459749,1778968238000,-500.0,6.629e-05,2]
[422459730,1778968238000,-500.0,6.629e-05,2]
[422459768,1778968238000,-500.0,6.629e-05,2]
[422459735,1778968238000,-500.0,6.629e-05,2]
[422459774,1778968238000,-500.0,6.629e-05,2]
[422459820,1778968238000,-2587.04169871,6.7e-05,2]
[422459818,1778968238000,-2362.51165941,6.7e-05,2]
[422459811,1778968238000,-22237.04258554,6.634e-05,2]
[422459804,1778968238000,-142190.37480426,6.631e-05,2]
[422459809,1778968238000,-4062.29922733,6.634e-05,2]
[422459806,1778968238000,-2444.39912875,6.634e-05,2]
[422459802,1778968238000,-500.0,6.63e-05,2]
[422459815,1778968238000,-2357.13315691,6.7e-05,2]
[422459757,1778968238000,-500.0,6.629e-05,2]
[422459817,1778968238000,-2137.98162018,6.7e-05,2]
[422459800,1778968238000,-500.0,6.63e-05,2]
[422459799,1778968238000,-500.0,6.63e-05,2]
[422459797,1778968238000,-500.0,6.63e-05,2]
[422459795,1778968238000,-348.27619886,6.63e-05,2]
[422459813,1778968238000,-961.58878714,6.7e-05,2]
[422459776,1778968238000,-500.0,6.629e-05,2]
[422459792,1778968238000,-500.0,6.63e-05,2]
[422459764,1778968238000,-600.0,6.629e-05,2]
[422459751,1778968238000,-500.0,6.629e-05,2]
[422459772,1778968238000,-500.0,6.629e-05,2]
[422459780,1778968238000,-500.0,6.629e-05,2]
[422459782,1778968238000,-500.0,6.629e-05,2]
[422459761,1778968238000,-500.0,6.629e-05,2]
[422459778,1778968238000,-550.0,6.629e-05,2]
[422459786,1778968238000,-500.0,6.63e-05,2]
[422459791,1778968238000,-500.0,6.63e-05,2]
[422459822,1778968238000,-1413.0,6.71e-05,2]
[422459784,1778968238000,-500.0,6.63e-05,2]
[422459788,1778968238000,-500.0,6.63e-05,2]
[422459844,1778968239000,-500.0,6.834e-05,2]
[422459838,1778968239000,-570.16181612,6.734e-05,2]
[422459832,1778968239000,-218.758,6.71e-05,2]
[422459842,1778968239000,-500.0,6.834e-05,2]
[422459828,1778968239000,-443.0,6.71e-05,2]
[422459834,1778968239000,-331.277,6.71e-05,2]
[422459830,1778968239000,-185.0,6.71e-05,2]
[422459826,1778968239000,-556.0,6.71e-05,2]
[422459824,1778968239000,-2202.0,6.71e-05,2]
[422459840,1778968239000,-557.5788265,6.782e-05,2]
[422459847,1778968239000,-500.0,6.834e-05,2]
[422459836,1778968239000,-537.6845,6.727e-05,2]
[422459852,1778968239000,-500.0,6.834e-05,2]
[422459850,1778968239000,-500.0,6.834e-05,2]
[422459861,1778968239000,-500.0,6.834e-05,2]
[422459854,1778968239000,-500.0,6.834e-05,2]
[422459856,1778968239000,-500.0,6.834e-05,2]
[422459859,1778968239000,-500.0,6.834e-05,2]
[422459864,1778968239000,-500.0,6.834e-05,2]
[422459868,1778968239000,-774336.40700867,6.834e-05,2]
[422459866,1778968239000,-810.02067998,6.834e-05,2]
[422459863,1778968239000,-500.0,6.834e-05,2]
[422459873,1778968239000,-24002.19573242,6.834e-05,2]
[422459848,1778968239000,-500.0,6.834e-05,2]
[422460091,1778968240000,-13181.2262541,6.834e-05,2]
[422460486,1778968244000,-2117.33197332,6.834e-05,2]
[422460862,1778968246000,-319.48115503,6.766e-05,2]
[422460893,1778968247000,-1443.25030795,6.766e-05,2]
[422463047,1778968406000,3000.0,8e-05,30]
[422463094,1778969432000,-3179.7982655,5.889e-05,2]
[422463427,1778969441000,-1820.2017345,5.889e-05,2]
[422463430,1778969441000,-152.0,6.021e-05,7]
[422463431,1778969441000,-300.0,6.068e-05,2]
[422463436,1778969441000,-8419.5010767,6.169e-05,2]
[422463432,1778969441000,-5761.87976751,6.069e-05,2]
[422463429,1778969441000,-520.35566421,6.015e-05,2]
[422463437,1778969441000,-3096.09892353,6.196e-05,2]
[422463428,1778969441000,-1925.03758843,5.996e-05,2]
[422463438,1778969441000,-1524.43246373,6.196e-05,2]
[422463434,1778969441000,-3065.13344316,6.096e-05,2]
[422463433,1778969441000,-1105.25324706,6.096e-05,2]
[422463439,1778969441000,-2162.58042706,6.269e-05,2]
[422463456,1778969441000,-473.57376399,6.269e-05,2]
[422463435,1778969441000,-2673.95293705,6.169e-05,2]
[422463492,1778969442000,-13829.31751709,6.369e-05,2]
[422463497,1778969442000,-500.0,6.428e-05,2]
[422463479,1778969442000,-643.04233894,6.367e-05,2]
[422463481,1778969442000,-500.0,6.367e-05,2]
[422463470,1778969442000,-9825.23157433,6.269e-05,2]
[422463474,1778969442000,-521.77951883,6.367e-05,2]
[422463472,1778969442000,-4713.00108369,6.296e-05,2]
[422463476,1778969442000,-500.0,6.367e-05,2]
[422463494,1778969442000,-5070.67608441,6.396e-05,2]
[422463478,1778969442000,-500.0,6.367e-05,2]
[422463489,1778969442000,-430.11757722,6.367e-05,2]
[422463483,1778969442000,-500.0,6.367e-05,2]
[422463486,1778969442000,-500.0,6.367e-05,2]
[422463495,1778969442000,-151.0,6.424e-05,2]
[422463499,1778969442000,-500.0,6.428e-05,2]
[422463501,1778969442000,-500.0,6.428e-05,2]
[422463513,1778969442000,-13016.95263226,6.429e-05,2]
[422463505,1778969442000,-500.0,6.428e-05,2]
[422463507,1778969442000,-500.0,6.428e-05,2]
[422463509,1778969442000,-393.7933392,6.428e-05,2]
[422463511,1778969442000,-716476.48949144,6.429e-05,2]
[422463503,1778969442000,-500.0,6.428e-05,2]
[422463515,1778969442000,-1756.27966031,6.429e-05,2]
[422463487,1778969442000,-500.0,6.367e-05,2]
[422463739,1778969444000,-4143.0169926,6.429e-05,2]
[422463743,1778969444000,-911.91340463,6.429e-05,2]
[422463750,1778969444000,-1012.16871165,6.429e-05,2]
[422463747,1778969444000,-6953.26716005,6.429e-05,2]
[422463745,1778969444000,-1617.10945299,6.429e-05,2]
[422463741,1778969444000,-2120.85319521,6.429e-05,2]
[422466410,1778970636000,-5000.0,5.866e-05,2]
[422466466,1778970638000,-426.5662852,6.369e-05,2]
[422466460,1778970638000,-515.14013416,6.016e-05,2]
[422466462,1778970638000,-200.0,6.038e-05,2]
[422466464,1778970638000,-300.0,6.368e-05,2]
[422466469,1778970638000,-9259.80131239,6.369e-05,2]
[422466488,1778970638000,-238.11581544,6.468e-05,2]
[422466486,1778970638000,-259.36001153,6.46e-05,2]
[422466484,1778970638000,-22121.06795698,6.369e-05,2]
[422466492,1778970638000,-2000.38884425,6.469e-05,2]
[422466490,1778970638000,-7461.04945557,6.469e-05,2]
[422466480,1778970638000,-3322.70358575,6.369e-05,2]
[422466782,1778970640000,-427.51559247,6.656e-05,2]
[422466780,1778970640000,-578.20924308,6.601e-05,2]
[422466778,1778970640000,-557.5788265,6.546e-05,2]
[422466776,1778970640000,-537.6845,6.491e-05,2]
[422466774,1778970640000,-162.380719,6.491e-05,2]
[422466772,1778970640000,-4718.26111895,6.469e-05,2]
[422467155,1778970643000,-243.5945013,6.7e-05,2]
[422467149,1778970643000,-172.0873926,6.656e-05,2]
[422467151,1778970643000,-232.49871042,6.7e-05,2]
[422467153,1778970643000,-181.41802173,6.7e-05,2]
[422467165,1778970643000,-845.74016435,6.7e-05,2]
[422467159,1778970643000,-420.88981656,6.7e-05,2]
[422467161,1778970643000,-995.10214932,6.7e-05,2]
[422467163,1778970643000,-1276.71845214,6.7e-05,2]
[422467190,1778970643000,-392.20921696,6.7e-05,2]
[422467188,1778970643000,-723.57431772,6.7e-05,2]
[422467157,1778970643000,-250.6053367,6.7e-05,2]
[422467611,1778970646000,-210.28632338,5.885e-05,2]
[422467613,1778970646000,-1116.2516932,6.7e-05,2]
[422468606,1778970655000,286.63,6.891e-05,25]
[422469453,1778971676000,1002.51,0.00017808,120]
[422469491,1778971832000,-5000.0,5.134e-05,2]
[422469493,1778971832000,-919.2194281,5.186e-05,2]
[422469495,1778971832000,-518.0767385,5.343e-05,2]
[422469497,1778971832000,-300.0,5.499e-05,2]
[422469499,1778971832000,-1200.0,5.499e-05,2]
[422469501,1778971832000,-3276.59478649,5.5e-05,2]
[422469581,1778971838000,-500.0,6.048e-05,2]
[422469561,1778971838000,-214.45750858,6.048e-05,2]
[422469563,1778971838000,-500.0,6.048e-05,2]
[422469579,1778971838000,-500.0,6.048e-05,2]
[422469573,1778971838000,-500.0,6.048e-05,2]
[422469565,1778971838000,-500.0,6.048e-05,2]
[422469567,1778971838000,-500.0,6.048e-05,2]
[422469571,1778971838000,-500.0,6.048e-05,2]
[422469547,1778971838000,-4674.19972661,5.445e-05,2]
[422469560,1778971838000,-152.0,6.022e-05,7]
[422469557,1778971838000,-10986.10407817,5.627e-05,2]
[422469555,1778971838000,-10752.52743636,5.527e-05,2]
[422469553,1778971838000,-8641.15146044,5.5e-05,2]
[422469551,1778971838000,-9696.83944835,5.5e-05,2]
[422469549,1778971838000,-1202.37748229,5.5e-05,2]
[422469531,1778971838000,-325.80027339,5.445e-05,2]
[422469577,1778971838000,-500.0,6.048e-05,2]
[422469569,1778971838000,-500.0,6.048e-05,2]
[422469583,1778971838000,-500.0,6.048e-05,2]
[422469575,1778971838000,-500.0,6.048e-05,2]
[422469598,1778971838000,-68.70677775,6.268e-05,2]
[422469620,1778971838000,-179.24543093,6.395e-05,2]
[422469622,1778971838000,-537.6845,6.491e-05,2]
[422469618,1778971838000,-16986.2486185,6.378e-05,2]
[422469616,1778971838000,-10276.08201409,6.269e-05,2]
[422469624,1778971838000,-36197.40495033,6.492e-05,2]
[422469614,1778971838000,-76078.24424539,6.269e-05,2]
[422469611,1778971838000,-227709.2093851,6.269e-05,2]
[422469609,1778971838000,-425.90371818,6.269e-05,2]
[422469607,1778971838000,-422.6905,6.269e-05,2]
[422469585,1778971838000,-500.0,6.048e-05,2]
[422469604,1778971838000,-375.65533744,6.268e-05,2]
[422469595,1778971838000,-500.0,6.268e-05,2]
[422469601,1778971838000,-431.29322225,6.268e-05,2]
[422469593,1778971838000,-11404.10304681,6.049e-05,2]
[422469603,1778971838000,-500.0,6.268e-05,2]
[422469587,1778971838000,-500.0,6.048e-05,2]
[422469591,1778971838000,-420.0,6.049e-05,2]
[422469589,1778971838000,-496.26327549,6.048e-05,2]
[422469597,1778971838000,-500.0,6.268e-05,2]
[422470612,1778971846000,-1365.08688612,6.492e-05,2]
[422470654,1778971846000,-610.56677658,6.492e-05,2]
[422470652,1778971846000,-6817.66242005,6.492e-05,2]
[422470638,1778971846000,-16476.47080799,6.492e-05,2]
[422472132,1778972001000,3000.0,8e-05,30]
[422472134,1778972369000,-5000.0,6.112e-05,2]
[422472135,1778972384000,-203.0,6.174e-05,2]
[422472136,1778972448000,-1223.4985,6.051e-05,2]
[422472137,1778972448000,-5000.0,6.112e-05,2]
[422472139,1778972448000,-3641.902075,6.198e-05,2]
[422472138,1778972448000,-724.0,6.197e-05,2]
[422472149,1778972448000,-2202.0,6.69e-05,2]
[422472142,1778972448000,-537.6845,6.491e-05,2]
[422472145,1778972448000,-578.20924308,6.601e-05,2]
[422472144,1778972448000,-557.5788265,6.546e-05,2]
[422472141,1778972448000,-512.99376471,6.221e-05,2]
[422472143,1778972448000,-3320.04044936,6.492e-05,2]
[422472147,1778972448000,-1750.06,6.656e-05,2]
[422472140,1778972448000,-300.0,6.22e-05,2]
[422472148,1778972448000,-1413.0,6.69e-05,2]
[422472150,1778972448000,-154.66,6.69e-05,2]
[422472161,1778972448000,-500.0,6.833e-05,2]
[422472162,1778972448000,-500.0,6.833e-05,2]
[422472146,1778972448000,-599.60298507,6.656e-05,2]
[422472158,1778972448000,-500.0,6.833e-05,2]
[422472159,1778972448000,-500.0,6.833e-05,2]
[422472160,1778972448000,-500.0,6.833e-05,2]
[422472156,1778972448000,-151.0,6.795e-05,2]
[422472155,1778972448000,-644.79446246,6.766e-05,2]
[422472151,1778972448000,-185.0,6.69e-05,2]
[422472153,1778972448000,-621.78829552,6.711e-05,2]
[422472154,1778972448000,-151.0,6.735e-05,2]
[422472152,1778972448000,-443.0,6.69e-05,2]
[422472157,1778972448000,-668.65185757,6.821e-05,2]
[422472163,1778972449000,-500.0,6.833e-05,2]
[422472164,1778972449000,-500.0,6.833e-05,2]
[422472166,1778972449000,-500.0,6.833e-05,2]
[422472165,1778972449000,-500.0,6.833e-05,2]
[422472169,1778972449000,-500.0,6.833e-05,2]
[422472167,1778972449000,-583.29388374,6.833e-05,2]
[422472168,1778972449000,-500.0,6.833e-05,2]
[422472170,1778972449000,-476.98891372,6.833e-05,2]
[422472172,1778972449000,-500.0,6.833e-05,2]
[422472173,1778972449000,-500.0,6.833e-05,2]
[422472174,1778972449000,-500.0,6.833e-05,2]
[422472177,1778972449000,-500.0,6.833e-05,2]
[422472178,1778972449000,-500.0,6.833e-05,2]
[422472175,1778972449000,-500.0,6.833e-05,2]
[422472176,1778972449000,-435.07059154,6.833e-05,2]
[422472179,1778972449000,-323.194,6.833e-05,2]
[422472180,1778972449000,-8176.98765173,6.834e-05,2]
[422472171,1778972449000,-500.0,6.833e-05,2]
[422472277,1778973032000,-420.0,6.202e-05,2]
[422472275,1778973032000,-151.0,5.969e-05,2]
[422472263,1778973032000,-2306.97076253,5.417e-05,2]
[422472272,1778973032000,-300.0,5.638e-05,2]
[422472267,1778973032000,-5000.0,5.472e-05,2]
[422472265,1778973032000,-2693.02923747,5.417e-05,2]
[422472271,1778973032000,-509.51714183,5.555e-05,2]
[422472269,1778973032000,-279.61116637,5.527e-05,2]
[422472278,1778973032000,-258.556,6.72e-05,2]
[422472296,1778973032000,-537.6845,6.83e-05,2]
[422472288,1778973032000,-185.0,6.72e-05,2]
[422472300,1778973032000,-29607.80569242,6.834e-05,2]
[422472286,1778973032000,-443.0,6.72e-05,2]
[422472282,1778973032000,-647.0,6.72e-05,2]
[422472290,1778973032000,-2870.0,6.734e-05,2]
[422472284,1778973032000,-1413.0,6.72e-05,2]
[422472292,1778973032000,-587.0,6.822e-05,2]
[422472298,1778973032000,-2185.87006038,6.834e-05,2]
[422472281,1778973032000,-2202.0,6.72e-05,2]
[422472294,1778973032000,-200.0,6.826e-05,2]
[422472401,1778973038000,-2721.24019379,6.834e-05,2]
[422472715,1778973040000,-359.99275684,6.834e-05,2]
[422472713,1778973040000,-325.99178291,6.834e-05,2]
[422473079,1778973044000,-1037.38318,6.766e-05,2]
[422473360,1778973047000,-1332.2108709,6.766e-05,2]
[422473398,1778973285000,15000.0,0.00015,120]
[422473401,1778973677000,10000.0,0.00017808,120]
[422473404,1778973802000,164.757806,2.894e-05,2]
[422473408,1778974235000,-5000.0,5.702e-05,2]
[422473409,1778974236000,-504.89796589,5.76e-05,2]
[422473413,1778974237000,-300.0,6.629e-05,2]
[422473410,1778974237000,-300.0,5.789e-05,2]
[422473411,1778974237000,-537.6845,6.626e-05,2]
[422473423,1778974237000,-117.44354575,6.833e-05,2]
[422473414,1778974237000,-557.5788265,6.681e-05,2]
[422473417,1778974237000,-2202.0,6.72e-05,2]
[422473421,1778974237000,-500.0,6.833e-05,2]
[422473419,1778974237000,-206.844,6.733e-05,2]
[422473418,1778974237000,-185.0,6.72e-05,2]
[422473420,1778974237000,-152.55116186,6.736e-05,2]
[422473412,1778974237000,-300.0,6.629e-05,2]
[422473422,1778974237000,-500.0,6.833e-05,2]
[422473415,1778974237000,-647.0,6.72e-05,2]
[422473424,1778974237000,-382.55645425,6.833e-05,2]
[422473428,1778974237000,-500.0,6.833e-05,2]
[422473435,1778974237000,-500.0,6.833e-05,2]
[422473434,1778974237000,-605.96733621,6.833e-05,2]
[422473433,1778974237000,-500.0,6.833e-05,2]
[422473436,1778974237000,-80.99410954,6.833e-05,2]
[422473432,1778974237000,-500.0,6.833e-05,2]
[422473416,1778974237000,-1413.0,6.72e-05,2]
[422473425,1778974237000,-500.0,6.833e-05,2]
[422473426,1778974237000,-500.0,6.833e-05,2]
[422473427,1778974237000,-500.0,6.833e-05,2]
[422473429,1778974237000,-500.0,6.833e-05,2]
[422473430,1778974237000,-500.0,6.833e-05,2]
[422473431,1778974237000,-500.0,6.833e-05,2]
[422473480,1778974238000,-285.21413154,6.833e-05,2]
[422473479,1778974238000,-419.00589046,6.833e-05,2]
[422473653,1778974243000,-177.3758378,6.833e-05,2]
[422473654,1778974243000,-26789.91381159,6.834e-05,2]
[422473652,1778974243000,-72.6241622,6.833e-05,2]
[422473650,1778974243000,-72.6241622,6.833e-05,2]
[422473651,1778974243000,-427.3758378,6.833e-05,2]
[422473649,1778974243000,-214.78586846,6.833e-05,2]
[422473661,1778974246000,-13099.45336495,6.834e-05,2]